fUST/lending_fUST_20240414
["ID","MTS","AMOUNT","RATE_DAILY","PERIOD"]
[322484435,1713036643471,-500.0,0.0003315,7]
[322484436,1713036643481,-1140.73,0.0003315,7]
[322484437,1713036643491,-500.0,0.0003315,7]
[322484438,1713036643500,-1129.14,0.0003315,7]
[322484439,1713036643510,-500.0,0.0003315,7]
[322484440,1713036643521,-3721.4,0.0003315,7]
[322484441,1713036643530,-2304.56,0.0003315,7]
[322484442,1713036643539,-500.0,0.0003315,7]
[322484443,1713036643549,-500.0,0.0003315,7]
[322484444,1713036643558,-500.0,0.0003315,7]
[322484445,1713036643567,-508.62523054,0.0003315,7]
[322484446,1713036643576,-500.0,0.0003315,7]
[322484447,1713036643585,-1331.84,0.0003315,7]
[322484448,1713036643594,-504.09628153,0.0003315,7]
[322484449,1713036643603,-500.0,0.0003315,7]
[322484451,1713036643613,-500.0,0.0003315,7]
[322484453,1713036643622,-500.0,0.0003315,7]
[322484455,1713036643631,-5998.84,0.0003315,7]
[322484457,1713036643640,-500.0,0.0003315,7]
[322484459,1713036643649,-500.0,0.0003315,7]
[322484461,1713036643658,-953.27,0.0003315,7]
[322484463,1713036643668,-2186.93,0.0003315,7]
[322484465,1713036643678,-502.12859615,0.0003315,7]
[322484467,1713036643687,-509.95726876,0.0003315,7]
[322484469,1713036643696,-736.85,0.0003315,7]
[322484471,1713036643706,-500.0,0.0003315,7]
[322484474,1713036643715,-500.0,0.0003315,7]
[322484476,1713036643725,-500.0,0.0003315,7]
[322484478,1713036643734,-500.0,0.0003315,7]
[322484480,1713036643743,-2806.68,0.0003315,7]
[322484481,1713036643752,-500.0,0.0003315,7]
[322484484,1713036643762,-500.0,0.0003315,7]
[322484486,1713036643771,-500.0,0.0003315,7]
[322484487,1713036643781,-500.0,0.0003315,7]
[322484490,1713036643790,-500.0,0.0003315,7]
[322484491,1713036643799,-591.08396249,0.0003315,7]
[322484494,1713036643809,-500.0,0.0003315,7]
[322484496,1713036643818,-500.0,0.0003315,7]
[322484498,1713036643827,-812.58,0.0003315,7]
[322484500,1713036643836,-500.0,0.0003315,7]
[322484502,1713036643847,-815.38,0.0003315,7]
[322484504,1713036643856,-500.0,0.0003315,7]
[322484506,1713036643865,-500.0,0.0003315,7]
[322484508,1713036643874,-772.25,0.0003315,7]
[322484509,1713036643883,-500.0,0.0003315,7]
[322484512,1713036643892,-500.0,0.0003315,7]
[322484514,1713036643902,-2491.17,0.0003315,7]
[322484515,1713036643911,-977.49,0.0003315,7]
[322484517,1713036643920,-500.0,0.0003315,7]
[322484519,1713036643929,-2051.17,0.0003315,7]
[322484521,1713036643938,-831.44,0.0003315,7]
[322484523,1713036643947,-500.0,0.0003315,7]
[322484526,1713036643956,-500.0,0.0003315,7]
[322484527,1713036643965,-500.0,0.0003315,7]
[322484529,1713036643974,-500.0,0.0003315,7]
[322484531,1713036643983,-2074.11,0.0003315,7]
[322484533,1713036643992,-500.0,0.0003315,7]
[322484535,1713036644001,-1227.55,0.0003315,7]
[322484538,1713036644011,-500.0,0.0003315,7]
[322484540,1713036644021,-500.0,0.0003315,7]
[322484541,1713036644030,-500.0,0.0003315,7]
[322484543,1713036644039,-500.0,0.0003315,7]
[322484545,1713036644048,-500.0,0.0003315,7]
[322484547,1713036644057,-500.0,0.0003315,7]
[322484549,1713036644065,-1262.39,0.0003315,7]
[322484551,1713036644074,-500.0,0.0003315,7]
[322484553,1713036644084,-500.0,0.0003315,7]
[322484555,1713036644093,-500.0,0.0003315,7]
[322484557,1713036644102,-500.0,0.0003315,7]
[322484559,1713036644111,-501.33177882,0.0003315,7]
[322484561,1713036644120,-786.75,0.0003315,7]
[322484563,1713036644129,-500.0,0.0003315,7]
[322484565,1713036644138,-500.0,0.0003315,7]
[322484567,1713036644147,-500.0,0.0003315,7]
[322484569,1713036644156,-500.0,0.0003315,7]
[322484571,1713036644165,-500.0,0.0003315,7]
[322484573,1713036644174,-419.90088758,0.0003315,7]
[322484575,1713036644183,-9445.1,0.0003315,7]
[322484577,1713036644193,-500.0,0.0003315,7]
[322484579,1713036644202,-577.5287327,0.0003315,7]
[322484581,1713036644211,-500.0,0.0003315,7]
[322484584,1713036644221,-500.0,0.0003315,7]
[322484585,1713036644230,-500.0,0.0003315,7]
[322484587,1713036644240,-500.0,0.0003315,7]
[322484589,1713036644249,-1003.56,0.0003315,7]
[322484592,1713036644259,-29470.12,0.0003315,7]
[322484593,1713036644269,-500.0,0.0003315,7]
[322484595,1713036644279,-500.0,0.0003315,7]
[322484597,1713036644289,-2318.22,0.0003315,7]
[322484599,1713036644297,-500.0,0.0003315,7]
[322484601,1713036644307,-499.39043389,0.0003315,7]
[322484603,1713036644316,-503.12603067,0.0003315,7]
[322484605,1713036644325,-500.0,0.0003315,7]
[322484607,1713036644334,-500.0,0.0003315,7]
[322484609,1713036644342,-516.49275527,0.0003315,7]
[322484611,1713036644352,-928.55,0.0003315,7]
[322484613,1713036644361,-500.0,0.0003315,7]
[322484615,1713036644370,-500.0,0.0003315,7]
[322484618,1713036644379,-500.0,0.0003315,7]
[322484619,1713036644388,-500.0,0.0003315,7]
[322484621,1713036644398,-500.0,0.0003315,7]
[322484624,1713036644410,-501.56750092,0.0003315,7]
[322484626,1713036644419,-500.0,0.0003315,7]
[322484628,1713036644429,-500.0,0.0003315,7]
[322484630,1713036644438,-500.0,0.0003315,7]
[322484631,1713036644447,-500.0,0.0003315,7]
[322484633,1713036644456,-1441.0,0.0003315,2]
[322484635,1713036644466,-411.91497699,0.0003315,7]
[322484637,1713036644475,-153.0,0.00033221,2]
[322484639,1713036644485,-2833.64998047,0.00033324,2]
[322484641,1713036644495,-489.23080508,0.00033422,7]
[322484643,1713036644504,-500.0,0.00033423,7]
[322484645,1713036644513,-500.0,0.00033423,7]
[322484647,1713036644524,-500.0,0.00033423,7]
[322484649,1713036644533,-500.0,0.00033423,7]
[322484651,1713036644542,-500.0,0.00033423,7]
[322484653,1713036644551,-412.440759,0.00033423,7]
[322484655,1713036644561,-625.72,0.00033424,7]
[322484657,1713036644571,-630.98448967,0.00033424,7]
[322484659,1713036644580,-489.54793724,0.00033424,7]
[322484661,1713036644589,-500.0,0.00033424,7]
[322484663,1713036644598,-300.0,0.00033424,7]
[322484665,1713036644607,-500.0,0.00033424,7]
[322484667,1713036644617,-1502.75,0.00033424,7]
[322484669,1713036644626,-500.0,0.00033424,7]
[322484671,1713036644635,-500.0,0.00033424,7]
[322484673,1713036644644,-500.0,0.00033424,7]
[322484675,1713036644654,-502.3961917,0.00033424,7]
[322484677,1713036644663,-500.0,0.00033424,7]
[322484679,1713036644672,-500.0,0.00033424,7]
[322484681,1713036644681,-500.0,0.00033424,7]
[322484683,1713036644691,-500.0,0.00033424,7]
[322484685,1713036644700,-762.86,0.00033424,7]
[322484687,1713036644709,-502.85541641,0.00033424,14]
[322484689,1713036644719,-500.0,0.00033424,7]
[322484691,1713036644729,-2141.51,0.00033424,7]
[322484693,1713036644739,-600.75248345,0.00033424,7]
[322484695,1713036644748,-901.82,0.00033424,7]
[322484697,1713036644756,-500.0,0.00033424,7]
[322484699,1713036644765,-500.0,0.00033424,7]
[322484701,1713036644776,-509.601207,0.00033424,7]
[322484703,1713036644784,-500.0,0.00033424,7]
[322484705,1713036644793,-500.0,0.00033424,7]
[322484707,1713036644802,-500.0,0.00033424,7]
[322484709,1713036644811,-500.0,0.00033424,7]
[322484711,1713036644821,-500.0,0.00033424,7]
[322484713,1713036644830,-569.21,0.00033424,7]
[322484715,1713036644839,-500.0,0.00033424,7]
[322484717,1713036644848,-500.0,0.00033424,7]
[322484719,1713036644857,-512.56,0.00033424,7]
[322484721,1713036644866,-500.0,0.00033424,7]
[322484723,1713036644875,-500.0,0.00033424,7]
[322484725,1713036644885,-1203.37,0.00033424,7]
[322484727,1713036644894,-3159.85,0.00033424,7]
[322484729,1713036644903,-505.82341334,0.00033424,7]
[322484731,1713036644913,-867.07,0.00033424,7]
[322484733,1713036644921,-2381.19,0.00033424,7]
[322484735,1713036644930,-500.0,0.00033424,7]
[322484737,1713036644939,-500.0,0.00033424,7]
[322484739,1713036644948,-500.0,0.00033424,7]
[322484741,1713036644957,-593.37,0.00033424,7]
[322484743,1713036644967,-500.0,0.00033424,7]
[322484745,1713036644975,-500.0,0.00033424,7]
[322484747,1713036644984,-500.0,0.00033424,7]
[322484749,1713036644994,-500.0,0.00033424,7]
[322484751,1713036645002,-500.0,0.00033424,7]
[322484753,1713036645011,-289.05681872,0.00033424,7]
[322484755,1713036645020,-970.12,0.00033424,7]
[322484757,1713036645031,-500.0,0.00033424,7]
[322484759,1713036645040,-151.0,0.00033424,2]
[322484761,1713036645048,-500.0,0.00033424,7]
[322484763,1713036645057,-500.0,0.00033424,7]
[322484765,1713036645066,-500.0,0.00033424,7]
[322484767,1713036645075,-151.0,0.00033424,2]
[322484769,1713036645084,-660.53,0.00033424,7]
[322484771,1713036645093,-500.0,0.00033424,7]
[322484773,1713036645103,-151.0,0.00033424,2]
[322484775,1713036645112,-1140.73,0.00033424,7]
[322484777,1713036645121,-151.0,0.00033424,2]
[322484779,1713036645130,-253.704668,0.00033424,2]
[322484781,1713036645139,-1129.14,0.00033424,7]
[322484783,1713036645147,-500.0,0.00033424,7]
[322484785,1713036645156,-3721.4,0.00033424,7]
[322484787,1713036645165,-2304.56,0.00033424,7]
[322484789,1713036645175,-500.0,0.00033424,7]
[322484791,1713036645183,-500.0,0.00033424,7]
[322484793,1713036645192,-500.0,0.00033424,7]
[322484795,1713036645201,-151.0,0.00033424,2]
[322484797,1713036645210,-500.0,0.00033424,7]
[322484799,1713036645219,-1331.84,0.00033424,7]
[322484801,1713036645228,-5998.84,0.00033424,7]
[322484803,1713036645237,-151.0,0.00033424,2]
[322484805,1713036645247,-500.0,0.00033424,7]
[322484816,1713036645256,-500.0,0.00033424,7]
[322484819,1713036645358,-953.27,0.00033424,7]
[322484821,1713036645368,-2186.93,0.00033424,7]
[322484823,1713036645377,-736.85,0.00033424,7]
[322484825,1713036645386,-359.982565,0.00033424,2]
[322484827,1713036645398,-500.0,0.00033424,7]
[322484829,1713036645408,-359.982565,0.00033424,2]
[322484831,1713036645417,-519.03290826,0.00033424,7]
[322484833,1713036645427,-510.60843423,0.00033424,7]
[322484835,1713036645438,-2806.68,0.00033424,7]
[322484837,1713036645448,-500.0,0.00033424,7]
[322484839,1713036645457,-500.0,0.00033424,7]
[322484841,1713036645466,-500.0,0.00033424,7]
[322484843,1713036645477,-500.0,0.00033424,7]
[322484845,1713036645486,-500.0,0.00033424,7]
[322484847,1713036645496,-812.58,0.00033424,7]
[322484849,1713036645505,-500.0,0.00033424,7]
[322484851,1713036645515,-815.38,0.00033424,7]
[322484852,1713036645527,-502.84228291,0.00033424,7]
[322484853,1713036645537,-375.0726596,0.00033424,7]
[322484854,1713036645546,-772.25,0.00033424,7]
[322484855,1713036645555,-220.775652,0.00033424,2]
[322484856,1713036645565,-2491.17,0.00033424,7]
[322484857,1713036645574,-977.49,0.00033424,7]
[322484858,1713036645583,-500.0,0.00033424,7]
[322484859,1713036645592,-2051.17,0.00033424,7]
[322484860,1713036645601,-831.44,0.00033424,7]
[322484861,1713036645611,-504.24950144,0.00033424,7]
[322484862,1713036645621,-500.0,0.00033424,7]
[322484864,1713036645630,-539.34341206,0.00033424,7]
[322484865,1713036645640,-2074.11,0.00033424,7]
[322484867,1713036645649,-1227.55,0.00033424,7]
[322484869,1713036645658,-500.0,0.00033424,7]
[322484871,1713036645669,-500.0,0.00033424,7]
[322484873,1713036645679,-500.0,0.00033424,7]
[322484875,1713036645689,-500.0,0.00033424,7]
[322484877,1713036645699,-500.0,0.00033424,7]
[322484879,1713036645709,-365.15564107,0.00033424,7]
[322484881,1713036645718,-1262.39,0.00033424,7]
[322484883,1713036645728,-500.0,0.00033424,7]
[322484885,1713036645737,-500.0,0.00033424,7]
[322484887,1713036645747,-500.0,0.00033424,7]
[322484889,1713036645755,-500.0,0.00033424,7]
[322484891,1713036645764,-786.75,0.00033424,7]
[322484893,1713036645774,-500.0,0.00033424,7]
[322484895,1713036645782,-500.0,0.00033424,7]
[322484897,1713036645792,-954.550025,0.00033424,2]
[322484899,1713036645801,-500.0,0.00033424,7]
[322484901,1713036645810,-954.550025,0.00033424,2]
[322484903,1713036645819,-500.0,0.00033424,7]
[322484905,1713036645828,-1041.171842,0.00033424,2]
[322484907,1713036645837,-9445.1,0.00033424,7]
[322484910,1713036645846,-505.65981487,0.00033424,7]
[322484912,1713036645854,-151.0,0.00033424,2]
[322484914,1713036645864,-1041.171842,0.00033424,2]
[322484916,1713036645873,-500.0,0.00033424,7]
[322484918,1713036645882,-500.0,0.00033424,7]
[322484919,1713036645891,-500.0,0.00033424,7]
[322484921,1713036645900,-1003.56,0.00033424,7]
[322484924,1713036645910,-27441.02036335,0.00033424,7]
[322484931,1713036645937,-2029.09963665,0.00033424,7]
[322484934,1713036645946,-151.0,0.00033424,2]
[322484937,1713036645954,-500.0,0.00033424,7]
[322484939,1713036645964,-500.0,0.00033424,7]
[322484941,1713036645973,-979.7896947,0.00033424,7]
[322485129,1713036647952,-467.19597092,0.00032876,7]
[322485130,1713036647965,-48.0712434,0.00032876,7]
[322485131,1713036647974,-501.65200182,0.00032876,7]
[322485132,1713036647984,-500.0,0.00032876,7]
[322485133,1713036647993,-2186.43806043,0.00032876,2]
[322485134,1713036648005,-11842.26540593,0.00032876,2]
[322485136,1713036648014,-500.0,0.00032876,7]
[322485137,1713036648023,-481.75517932,0.00032876,7]
[322485139,1713036648035,-500.0,0.0003315,7]
[322485141,1713036648044,-153.0,0.00033221,2]
[322485143,1713036648053,-1338.4303053,0.00033424,7]
[322485145,1713036648062,-151.0,0.00033424,2]
[322485147,1713036648072,-574.31997449,0.00033424,7]
[322485149,1713036648081,-500.0,0.00033424,7]
[322485151,1713036648090,-928.55,0.00033424,7]
[322485153,1713036648099,-500.0,0.00033424,7]
[322485155,1713036648108,-151.0,0.00033424,2]
[322485157,1713036648117,-500.0,0.00033424,7]
[322485159,1713036648126,-500.0,0.00033424,7]
[322485160,1713036648136,-151.0,0.00033424,2]
[322485162,1713036648145,-500.0,0.00033424,7]
[322485164,1713036648154,-500.0,0.00033424,7]
[322485166,1713036648164,-151.0,0.00033424,2]
[322485168,1713036648173,-1441.0,0.00033424,2]
[322485170,1713036648182,-500.0,0.00033424,7]
[322485172,1713036648191,-1058.83031275,0.00033522,4]
[322485174,1713036648200,-500.0,0.00033567,7]
[322485176,1713036648210,-151.0,0.00033587,2]
[322485178,1713036648219,-151.331917,0.00033587,2]
[322485180,1713036648228,-151.0,0.00033587,2]
[322485182,1713036648237,-152.383181,0.00033587,2]
[322485184,1713036648246,-151.0,0.00033587,2]
[322485186,1713036648255,-720.75108,0.00033587,2]
[322485188,1713036648264,-720.75108,0.00033587,2]
[322485190,1713036648274,-151.0,0.00033587,2]
[322485192,1713036648284,-11941.16091448,0.00033609,30]
[322485195,1713036648296,-46632.64598552,0.00033609,30]
[322485197,1713036648305,-167.056789,0.00033677,2]
[322485198,1713036648315,-500.0,0.00033697,7]
[322485200,1713036648324,-500.0,0.00033697,7]
[322485202,1713036648333,-575.464362,0.00033697,2]
[322485204,1713036648342,-575.464362,0.00033697,2]
[322485206,1713036648351,-364.05256396,0.00033698,7]
[322485208,1713036648360,-550.48245796,0.00033698,7]
[322485210,1713036648370,-1502.75,0.00033698,7]
[322485212,1713036648380,-500.0,0.00033698,7]
[322485214,1713036648390,-500.0,0.00033698,7]
[322485216,1713036648400,-500.0,0.00033698,7]
[322485219,1713036648412,-151.0,0.00033698,2]
[322485220,1713036648422,-151.0,0.00033698,2]
[322485222,1713036648431,-522.45962337,0.00033698,7]
[322485224,1713036648441,-500.0,0.00033698,7]
[322485226,1713036648451,-500.0,0.00033698,7]
[322485228,1713036648461,-151.0,0.00033698,2]
[322485231,1713036648470,-151.0,0.00033698,2]
[322485233,1713036648481,-155.450434,0.00033698,2]
[322485234,1713036648490,-762.86,0.00033698,7]
[322485236,1713036648500,-151.0,0.00033698,2]
[322485238,1713036648509,-151.0,0.00033698,2]
[322485240,1713036648519,-151.0,0.00033698,2]
[322485243,1713036648531,-500.0,0.00033698,7]
[322485245,1713036648541,-151.0,0.00033698,2]
[322485247,1713036648551,-2141.51,0.00033698,7]
[322485249,1713036648560,-253.9,0.00033698,2]
[322485251,1713036648570,-901.82,0.00033698,7]
[322485253,1713036648579,-253.9,0.00033698,2]
[322485255,1713036648588,-500.0,0.00033698,7]
[322485257,1713036648597,-518.88335223,0.00033698,7]
[322485259,1713036648607,-500.0,0.00033698,7]
[322485261,1713036648616,-575.464362,0.00033698,2]
[322485263,1713036648625,-575.464362,0.00033698,2]
[322485265,1713036648634,-151.0,0.00033698,2]
[322485267,1713036648643,-500.0,0.00033698,7]
[322485269,1713036648652,-500.0,0.00033698,7]
[322485271,1713036648660,-500.0,0.00033698,7]
[322485273,1713036648670,-569.21,0.00033698,7]
[322485275,1713036648679,-500.0,0.00033698,7]
[322485277,1713036648689,-151.0,0.00033698,2]
[322485279,1713036648698,-500.0,0.00033698,7]
[322485281,1713036648708,-512.56,0.00033698,7]
[322485282,1713036648718,-500.0,0.00033698,7]
[322485284,1713036648727,-500.0,0.00033698,7]
[322485286,1713036648736,-1203.37,0.00033698,7]
[322485288,1713036648745,-3159.85,0.00033698,7]
[322485290,1713036648754,-867.07,0.00033698,7]
[322485292,1713036648762,-720.75108,0.00033698,2]
[322485294,1713036648771,-720.75108,0.00033698,2]
[322485296,1713036648782,-2381.19,0.00033698,7]
[322485298,1713036648791,-500.0,0.00033698,7]
[322485300,1713036648800,-500.0,0.00033698,7]
[322485302,1713036648809,-593.37,0.00033698,7]
[322485304,1713036648819,-500.0,0.00033698,7]
[322485306,1713036648828,-500.0,0.00033698,7]
[322485308,1713036648837,-350.69926244,0.00033698,7]
[322485310,1713036648847,-500.0,0.00033698,7]
[322485312,1713036648856,-970.12,0.00033698,7]
[322485314,1713036648865,-151.0,0.00033698,2]
[322485316,1713036648874,-500.0,0.00033698,7]
[322485318,1713036648882,-191.06795352,0.00033698,7]
[322485320,1713036648893,-500.0,0.00033698,7]
[322485322,1713036648902,-151.0,0.00033698,2]
[322485324,1713036648911,-660.53,0.00033698,7]
[322485326,1713036648921,-500.0,0.00033698,7]
[322485328,1713036648929,-151.0,0.00033698,2]
[322485330,1713036648938,-151.0,0.00033698,2]
[322485332,1713036648947,-1129.14,0.00033698,7]
[322485334,1713036648956,-500.0,0.00033698,7]
[322485336,1713036648965,-3721.4,0.00033698,7]
[322485338,1713036648974,-2304.56,0.00033698,7]
[322485340,1713036648982,-500.0,0.00033698,7]
[322485342,1713036648991,-500.0,0.00033698,7]
[322485344,1713036649000,-250.123104,0.00033698,2]
[322485346,1713036649009,-1331.84,0.00033698,7]
[322485358,1713036649114,-5998.84,0.00033698,7]
[322485360,1713036649123,-151.0,0.00033698,2]
[322485362,1713036649132,-500.0,0.00033698,7]
[322485364,1713036649142,-953.27,0.00033698,7]
[322485366,1713036649151,-736.85,0.00033698,7]
[322485368,1713036649160,-359.982565,0.00033698,2]
[322485370,1713036649169,-500.0,0.00033698,7]
[322485372,1713036649178,-359.982565,0.00033698,2]
[322485374,1713036649187,-2806.68,0.00033698,7]
[322485376,1713036649197,-500.0,0.00033698,7]
[322485378,1713036649207,-500.0,0.00033698,7]
[322485380,1713036649216,-500.0,0.00033698,7]
[322485382,1713036649224,-500.0,0.00033698,7]
[322485384,1713036649233,-500.0,0.00033698,7]
[322485386,1713036649243,-812.58,0.00033698,7]
[322485388,1713036649251,-500.0,0.00033698,7]
[322485390,1713036649260,-815.38,0.00033698,7]
[322485392,1713036649269,-772.25,0.00033698,7]
[322485394,1713036649280,-2491.17,0.00033698,7]
[322485396,1713036649289,-977.49,0.00033698,7]
[322485398,1713036649298,-2051.17,0.00033698,7]
[322485400,1713036649307,-831.44,0.00033698,7]
[322485402,1713036649316,-500.0,0.00033698,7]
[322485404,1713036649325,-2074.11,0.00033698,7]
[322485406,1713036649333,-1227.55,0.00033698,7]
[322485408,1713036649342,-511.46111822,0.00033698,7]
[322485410,1713036649351,-500.0,0.00033698,7]
[322485412,1713036649361,-500.0,0.00033698,7]
[322485414,1713036649370,-500.0,0.00033698,7]
[322485416,1713036649379,-500.0,0.00033698,7]
[322485418,1713036649389,-1262.39,0.00033698,7]
[322485420,1713036649399,-500.0,0.00033698,7]
[322485422,1713036649410,-500.0,0.00033698,7]
[322485424,1713036649419,-500.0,0.00033698,7]
[322485426,1713036649428,-228.80741211,0.00033698,7]
[322485428,1713036649437,-786.75,0.00033698,7]
[322485430,1713036649446,-500.0,0.00033698,7]
[322485432,1713036649455,-500.0,0.00033698,7]
[322485434,1713036649464,-954.550025,0.00033698,2]
[322485436,1713036649473,-500.0,0.00033698,7]
[322485438,1713036649488,-954.550025,0.00033698,2]
[322485440,1713036649497,-500.0,0.00033698,7]
[322485442,1713036649506,-1041.171842,0.00033698,2]
[322485444,1713036649516,-9445.1,0.00033698,7]
[322485446,1713036649525,-151.0,0.00033698,2]
[322485448,1713036649534,-1041.171842,0.00033698,2]
[322485450,1713036649543,-500.0,0.00033698,7]
[322485452,1713036649552,-500.0,0.00033698,7]
[322485454,1713036649561,-500.0,0.00033698,7]
[322485456,1713036649570,-1003.56,0.00033698,7]
[322485458,1713036649579,-5810.77859725,0.00033698,7]
[322490317,1713037832643,-500.0,0.00027393,2]
[322490318,1713037832654,-700.0,0.00027394,2]
[322490319,1713037832667,-206.67933827,0.00027394,2]
[322490320,1713037832678,-272.13607813,0.00027395,2]
[322490321,1713037832690,-2004.36123028,0.00027395,2]
[322490322,1713037832701,-382.865022,0.00027397,2]
[322490323,1713037832722,-160.1318653,0.00031602,2]
[322490326,1713037832896,-518.5419639,0.00032874,4]
[322490328,1713037832908,-400.0,0.00032874,2]
[322490330,1713037832919,-300.0,0.00032874,2]
[322490332,1713037832931,-2477.60954566,0.00032875,4]
[322490334,1713037832943,-5509.85239729,0.00032876,5]
[322490336,1713037832955,-377.37248519,0.00032876,7]
[322490339,1713037832974,-55.65428677,0.00032876,7]
[322490340,1713037832990,-310.0,0.00032876,7]
[322490341,1713037833004,-134.34571323,0.00032876,7]
[322490342,1713037833015,-268.15431576,0.00032876,7]
[322490416,1713037839625,-231.84568424,0.00032876,7]
[322490419,1713037839638,-629.26086942,0.00032876,7]
[322490420,1713037839659,-210.43024267,0.00032876,7]
[322490422,1713037839674,-327.00788924,0.00032876,7]
[322490424,1713037839685,-500.0,0.00032876,7]
[322490426,1713037839697,-500.0,0.00032876,7]
[322490428,1713037839708,-500.0,0.00032876,7]
[322490430,1713037839723,-756.13,0.00032876,7]
[322490432,1713037839734,-500.0,0.00032876,7]
[322490434,1713037839753,-500.0,0.00032876,7]
[322490436,1713037839764,-500.0,0.00032876,7]
[322490438,1713037839775,-500.0,0.00032876,7]
[322490440,1713037839786,-500.0,0.00032876,7]
[322490442,1713037839799,-500.0,0.00032876,7]
[322490444,1713037839810,-500.0,0.00032876,7]
[322490446,1713037839820,-563.44,0.00032876,7]
[322490448,1713037839831,-291.63521212,0.00032876,7]
[322490450,1713037839842,-500.0,0.00032876,7]
[322490452,1713037839852,-500.0,0.00032876,7]
[322490454,1713037839862,-516.49275527,0.00032876,7]
[322490456,1713037839874,-500.0,0.00032876,7]
[322490458,1713037839884,-500.0,0.00032876,7]
[322490460,1713037839894,-500.0,0.00032876,7]
[322490462,1713037839904,-501.56750092,0.00032876,7]
[322490464,1713037839914,-293.79076652,0.00032876,7]
[322490466,1713037839924,-500.0,0.00032876,7]
[322490468,1713037839934,-500.0,0.00032876,7]
[322490470,1713037839944,-500.0,0.00032876,7]
[322490472,1713037839954,-500.0,0.00032876,7]
[322490474,1713037839968,-831.58,0.00032876,7]
[322490476,1713037839977,-500.0,0.00032876,7]
[322490478,1713037839987,-500.0,0.00032876,7]
[322490479,1713037839996,-500.0,0.00032876,7]
[322490481,1713037840007,-500.0,0.00032876,7]
[322490483,1713037840017,-500.0,0.00032876,7]
[322490485,1713037840027,-500.0,0.00032876,7]
[322490487,1713037840037,-500.0,0.00032876,7]
[322490489,1713037840047,-1873.82,0.00032876,7]
[322490491,1713037840057,-826.66,0.00032876,7]
[322490494,1713037840067,-538.60988678,0.00032876,7]
[322490498,1713037840077,-1320.91,0.00032876,2]
[322490500,1713037840087,-540.5841576,0.00032876,7]
[322490502,1713037840096,-500.0,0.00032876,7]
[322490504,1713037840105,-500.0,0.00032876,7]
[322490507,1713037840115,-500.0,0.00032876,7]
[322490510,1713037840125,-500.0,0.00032876,7]
[322490512,1713037840134,-508.47353412,0.00032876,7]
[322490514,1713037840143,-500.0,0.00032876,7]
[322490516,1713037840155,-500.0,0.00032876,7]
[322490518,1713037840164,-502.85541641,0.00032876,14]
[322490520,1713037840174,-509.49711825,0.00032876,7]
[322490522,1713037840183,-500.0,0.00032876,7]
[322490524,1713037840192,-500.0,0.00032876,7]
[322490526,1713037840201,-500.0,0.00032876,7]
[322490528,1713037840214,-500.0,0.00032876,7]
[322490530,1713037840224,-513.10504272,0.00032876,7]
[322490532,1713037840233,-500.0,0.00032876,7]
[322490534,1713037840243,-508.62523054,0.00032876,7]
[322490536,1713037840252,-500.0,0.00032876,7]
[322490538,1713037840261,-500.0,0.00032876,7]
[322490540,1713037840271,-500.0,0.00032876,7]